[Event "NJSK 2021 Jeugd C"]
[Site "Almelo, Netherlands"]
[Date "2021.08.03"]
[Round "3.7"]
[White "Ponomarev, Ivan"]
[Black "Pancharajah, Abisan"]
[Result "1-0"]
[TimeControl "90min + 30sec/move"]
[WhiteElo "1723"]
[BlackElo "1650"]

1. e4 {[%clk 01:30:59]} {[%emt 00:00:01]} c5 {[%clk 01:30:50]} {[%emt
00:00:09]} 2. Nf3 {[%clk 01:31:26]} {[%emt 00:00:04]} d6 {[%clk 01:31:11]}
{[%emt 00:00:08]} 3. Bb5+ {[%clk 01:31:53]} {[%emt 00:00:04]} Bd7 {[%clk
01:31:31]} {[%emt 00:00:09]} 4. Bxd7+ {[%clk 01:32:15]} {[%emt 00:00:08]} Nxd7
{[%clk 01:31:54]} {[%emt 00:00:07]} 5. O-O {[%clk 01:32:22]} {[%emt 00:00:23]}
Ngf6 {[%clk 01:32:05]} {[%emt 00:00:19]} 6. Qe2 {[%clk 01:31:35]} {[%emt
00:01:18]} Qc7 {[%clk 01:30:53]} {[%emt 00:01:41]} 7. d3 {[%clk 01:28:16]}
{[%emt 00:03:51]} e6 {[%clk 01:29:10]} {[%emt 00:02:12]} 8. Nc3 {[%clk
01:25:49]} {[%emt 00:02:57]} a6 {[%clk 01:26:07]} {[%emt 00:03:33]} 9. a4
{[%clk 01:25:23]} {[%emt 00:00:56]} Be7 {[%clk 01:23:27]} {[%emt 00:03:09]} 10.
Ne1 {[%clk 01:20:28]} {[%emt 00:05:25]} h6 {[%clk 01:09:27]} {[%emt 00:14:31]}
11. f4 {[%clk 01:19:25]} {[%emt 00:01:33]} g5 {[%clk 01:09:15]} {[%emt
00:00:41]} 12. f5 {[%clk 01:11:32]} {[%emt 00:08:24]} O-O-O {[%clk 01:04:57]}
{[%emt 00:04:46]} 13. Rb1 {[%clk 01:05:53]} {[%emt 00:06:09]} g4 {[%clk
01:04:21]} {[%emt 00:01:07]} 14. Be3 {[%clk 01:04:25]} {[%emt 00:01:56]} e5
{[%clk 01:02:20]} {[%emt 00:02:34]} 15. Nd5 {[%clk 00:57:37]} {[%emt 00:07:18]}
Nxd5 {[%clk 01:01:03]} {[%emt 00:01:47]} 16. exd5 {[%clk 00:58:02]} {[%emt
00:00:05]} h5 {[%clk 01:00:29]} {[%emt 00:01:04]} 17. b4 {[%clk 00:55:44]}
{[%emt 00:02:48]} Rdg8 {[%clk 00:59:01]} {[%emt 00:01:57]} 18. bxc5 {[%clk
00:45:56]} {[%emt 00:10:19]} Nxc5 {[%clk 00:58:56]} {[%emt 00:00:33]} 19. d4
{[%clk 00:42:44]} {[%emt 00:03:44]} Ne4 {[%clk 00:57:46]} {[%emt 00:01:38]} 20.
Rb4 {[%clk 00:36:40]} {[%emt 00:06:34]} exd4 {[%clk 00:50:23]} {[%emt
00:07:54]} 21. Bxd4 {[%clk 00:36:00]} {[%emt 00:01:11]} Nc5 {[%clk 00:50:26]}
{[%emt 00:00:26]} 22. Bxh8 {[%clk 00:34:46]} {[%emt 00:01:44]} Rxh8 {[%clk
00:50:07]} {[%emt 00:00:49]} 23. f6 {[%clk 00:32:25]} {[%emt 00:02:47]} Bd8
{[%clk 00:49:18]} {[%emt 00:01:23]} 24. Kh1 {[%clk 00:31:52]} {[%emt 00:01:02]}
Qd7 {[%clk 00:48:09]} {[%emt 00:01:39]} 25. Qc4 {[%clk 00:29:03]} {[%emt
00:03:21]} Ba5 {[%clk 00:41:53]} {[%emt 00:06:44]} 26. Rb1 {[%clk 00:29:05]}
{[%emt 00:00:28]} Re8 {[%clk 00:40:22]} {[%emt 00:02:02]} 27. Nd3 {[%emt
00:06:39]} Re4 {[%clk 00:39:53]} {[%emt 00:00:12]} 28. Nxc5 {[%clk 00:23:36]}
{[%emt 00:00:38]} Rxc4 {[%clk 00:39:05]} {[%emt 00:01:18]} 29. Nxd7 {[%emt
00:00:04]} Kxd7 {[%emt 00:00:14]} 30. Rxb7+ {[%clk 00:23:21]} {[%emt 00:00:27]}
Rc7 {[%clk 00:39:11]} {[%emt 00:00:23]} 31. Rxc7+ {[%clk 00:23:35]} {[%emt
00:00:17]} Kxc7 {[%clk 00:39:39]} {[%emt 00:00:01]} 32. Rf5 {[%clk 00:23:17]}
{[%emt 00:00:49]} Bc3 {[%clk 00:39:50]} {[%emt 00:00:18]} 33. Rxh5 {[%clk
00:23:26]} {[%emt 00:00:22]} Bxf6 {[%clk 00:40:19]} {[%emt 00:00:01]} 34. Rf5
{[%clk 00:23:32]} {[%emt 00:00:23]} Be5 {[%clk 00:40:46]} {[%emt 00:00:04]} 35.
Rxf7+ {[%clk 00:23:05]} {[%emt 00:00:56]} Kb6 {[%clk 00:41:08]} {[%emt
00:00:07]} 36. h4 {[%clk 00:22:37]} {[%emt 00:00:57]} gxh3 {[%clk 00:41:07]}
{[%emt 00:00:33]} 37. gxh3 {[%clk 00:23:01]} {[%emt 00:00:06]} a5 {[%clk
00:41:32]} {[%emt 00:00:06]} 38. h4 {[%clk 00:21:14]} {[%emt 00:02:17]} Kc5
{[%clk 00:41:26]} {[%emt 00:00:35]} 39. Rb7 {[%clk 00:21:07]} {[%emt 00:00:38]}
Bc3 {[%clk 00:41:29]} {[%emt 00:00:27]} 40. Rb5+ {[%clk 00:21:02]} {[%emt
00:00:31]} Kd4 {[%clk 00:41:54]} {[%emt 00:00:09]} 41. Kg2 {[%clk 00:21:02]}
{[%emt 00:00:29]} Ke3 {[%clk 00:42:08]} {[%emt 00:00:16]} 42. Rb3 {[%clk
00:20:17]} {[%emt 00:01:15]} Kd2 {[%clk 00:42:21]} {[%emt 00:00:17]} 43. Rxc3
{[%clk 00:20:37]} {[%emt 00:00:11]} Kxc3 {[%clk 00:42:47]} {[%emt 00:00:04]} 44.
h5 {[%clk 00:21:04]} {[%emt 00:00:03]} Kb4 {[%clk 00:43:15]} {[%emt 00:00:02]}
45. h6 {[%clk 00:21:27]} {[%emt 00:00:07]} Kxa4 {[%clk 00:43:43]} {[%emt
00:00:02]} 46. h7 {[%clk 00:21:51]} {[%emt 00:00:05]} Kb4 {[%clk 00:44:09]}
{[%emt 00:00:04]} 47. h8=Q {[%clk 00:22:15]} {[%emt 00:00:07]} a4 {[%clk
00:44:35]} {[%emt 00:00:04]} 48. Qb2+ {[%clk 00:22:34]} {[%emt 00:00:11]} Kc5
{[%clk 00:45:00]} {[%emt 00:00:05]} 49. Qa3+ {[%clk 00:22:58]} {[%emt
00:00:05]} Kxd5 {[%clk 00:45:25]} {[%emt 00:00:05]} 50. Qxa4 {[%clk 00:23:25]}
{[%emt 00:00:04]} 1-0

[Event "NJSK 2021 Jeugd C"]
[Site "Almelo, Netherlands"]
[Date "2021.08.03"]
[Round "3.8"]
[White "Madularea, David"]
[Black "Zecha, Oscar"]
[Result "1/2-1/2"]
[TimeControl "90min + 30sec/move"]
[WhiteElo "1656"]
[BlackElo "1650"]

1. e4 {[%clk 01:30:59]} {[%emt 00:00:01]} c5 {[%clk 01:30:53]} {[%emt
00:00:07]} 2. Nf3 {[%clk 01:31:23]} {[%emt 00:00:05]} d6 {[%clk 01:31:21]}
{[%emt 00:00:04]} 3. d4 {[%clk 01:31:46]} {[%emt 00:00:07]} cxd4 {[%clk
01:31:46]} {[%emt 00:00:05]} 4. Nxd4 {[%clk 01:32:11]} {[%emt 00:00:04]} Nf6
{[%clk 01:32:06]} {[%emt 00:00:10]} 5. Nc3 {[%clk 01:32:36]} {[%emt 00:00:05]}
a6 {[%clk 01:32:32]} {[%emt 00:00:04]} 6. Bg5 {[%clk 01:32:23]} {[%emt
00:00:42]} Nbd7 {[%clk 01:32:56]} {[%emt 00:00:08]} 7. f4 {[%clk 01:32:35]}
{[%emt 00:00:17]} Qc7 {[%clk 01:33:00]} {[%emt 00:00:26]} 8. Qf3 {[%clk
01:32:37]} {[%emt 00:00:27]} b5 {[%clk 01:33:23]} {[%emt 00:00:08]} 9. O-O-O
{[%clk 01:32:30]} {[%emt 00:00:37]} Bb7 {[%clk 01:31:27]} {[%emt 00:02:26]} 10.
Bd3 {[%clk 01:31:41]} {[%emt 00:01:19]} g6 {[%clk 01:27:47]} {[%emt 00:04:10]}
11. Rhe1 {[%clk 01:29:32]} {[%emt 00:02:38]} Bg7 {[%clk 01:27:26]} {[%emt
00:00:52]} 12. Nd5 {[%clk 01:24:50]} {[%emt 00:05:12]} Nxd5 {[%clk 01:26:33]}
{[%emt 00:01:23]} 13. exd5 {[%clk 01:25:13]} {[%emt 00:00:07]} Nf6 {[%clk
01:25:33]} {[%emt 00:01:31]} 14. Nc6 {[%clk 01:21:23]} {[%emt 00:04:19]} e6
{[%clk 01:24:03]} {[%emt 00:02:00]} 15. f5 {[%clk 01:19:19]} {[%emt 00:02:34]}
O-O {[%clk 01:23:54]} {[%emt 00:00:40]} 16. fxe6 {[%clk 01:14:27]} {[%emt
00:05:22]} fxe6 {[%clk 01:24:00]} {[%emt 00:00:24]} 17. Rxe6 {[%clk 01:13:59]}
{[%emt 00:00:58]} Nxd5 {[%clk 01:24:02]} {[%emt 00:00:28]} 18. Qxd5 {[%clk
01:14:21]} {[%emt 00:00:08]} Qxc6 {[%clk 01:24:24]} {[%emt 00:00:07]} 19. Qxc6
{[%clk 01:13:56]} {[%emt 00:00:56]} Bxc6 {[%clk 01:24:38]} {[%emt 00:00:15]} 20.
Rxd6 {[%clk 01:13:43]} {[%emt 00:00:43]} Bxg2 {[%clk 01:21:53]} {[%emt
00:03:16]} 21. Re1 {[%clk 01:09:39]} {[%emt 00:04:33]} Rf7 {[%clk 01:07:30]}
{[%emt 00:14:53]} 22. Kb1 {[%clk 01:00:06]} {[%emt 00:10:04]} Rb7 {[%clk
00:57:13]} {[%emt 00:10:47]} 23. c4 {[%clk 00:39:33]} {[%emt 00:21:03]} Rc8
{[%clk 00:43:29]} {[%emt 00:14:14]} 24. cxb5 {[%clk 00:32:03]} {[%emt
00:08:00]} axb5 {[%clk 00:43:26]} {[%emt 00:00:33]} 25. Bc2 {[%clk 00:29:59]}
{[%emt 00:02:34]} Rf8 {[%clk 00:31:56]} {[%emt 00:11:59]} 26. Bb3+ {[%clk
00:28:22]} {[%emt 00:02:08]} Kh8 {[%clk 00:32:16]} {[%emt 00:00:10]} 27. Rd8
{[%clk 00:25:27]} {[%emt 00:03:25]} Rxd8 {[%clk 00:20:47]} {[%emt 00:11:59]} 28.
Bxd8 {[%clk 00:25:50]} {[%emt 00:00:07]} Bd4 {[%clk 00:19:51]} {[%emt
00:01:26]} 29. Bg5 {[%clk 00:22:39]} {[%emt 00:03:41]} Rb8 {[%clk 00:18:56]}
{[%emt 00:01:25]} 30. Re7 {[%clk 00:20:44]} {[%emt 00:02:24]} Bf1 {[%clk
00:18:20]} {[%emt 00:01:07]} 31. Rd7 {[%clk 00:18:22]} {[%emt 00:02:52]} Bg7
{[%clk 00:17:25]} {[%emt 00:01:24]} 32. Bf4 {[%clk 00:17:24]} {[%emt 00:01:28]}
1/2-1/2

[Event "NJSK 2021 Jeugd C"]
[Site "Almelo, Netherlands"]
[Date "2021.08.03"]
[Round "3.9"]
[White "Ramdien, Steven"]
[Black "Aravindhan, Achyuth"]
[Result "0-1"]
[TimeControl "90min + 30sec/move"]
[WhiteElo "1589"]
[BlackElo "1031"]

1. e4 {[%clk 01:30:58]} {[%emt 00:00:02]} c5 {[%clk 01:30:57]} {[%emt
00:00:04]} 2. Nf3 {[%clk 01:31:23]} {[%emt 00:00:06]} d6 {[%clk 01:31:21]}
{[%emt 00:00:05]} 3. d4 {[%clk 01:31:48]} {[%emt 00:00:04]} cxd4 {[%clk
01:31:46]} {[%emt 00:00:06]} 4. Nxd4 {[%clk 01:32:13]} {[%emt 00:00:05]} Nf6
{[%clk 01:32:12]} {[%emt 00:00:05]} 5. Nc3 {[%clk 01:32:34]} {[%emt 00:00:08]}
g6 {[%clk 01:32:37]} {[%emt 00:00:06]} 6. Be3 {[%clk 01:32:43]} {[%emt
00:00:21]} Bg7 {[%clk 01:32:58]} {[%emt 00:00:09]} 7. f3 {[%clk 01:33:05]}
{[%emt 00:00:07]} O-O {[%clk 01:33:20]} {[%emt 00:00:08]} 8. Qd2 {[%clk
01:33:09]} {[%emt 00:00:26]} Nc6 {[%clk 01:33:28]} {[%emt 00:00:23]} 9. O-O-O
{[%clk 01:33:13]} {[%emt 00:00:26]} d5 {[%clk 01:31:00]} {[%emt 00:02:58]} 10.
Kb1 {[%clk 01:28:02]} {[%emt 00:05:42]} e6 {[%clk 01:28:38]} {[%emt 00:02:52]}
11. g4 {[%clk 01:23:45]} {[%emt 00:04:45]} e5 {[%clk 01:27:16]} {[%emt
00:01:52]} 12. Nxc6 {[%clk 01:20:04]} {[%emt 00:04:11]} bxc6 {[%clk 01:27:33]}
{[%emt 00:00:14]} 13. exd5 {[%clk 01:19:04]} {[%emt 00:01:30]} cxd5 {[%clk
01:27:53]} {[%emt 00:00:09]} 14. Nxd5 {[%clk 01:17:12]} {[%emt 00:02:23]} Nxd5
{[%clk 01:27:58]} {[%emt 00:00:24]} 15. Qxd5 {[%clk 01:17:10]} {[%emt
00:00:32]} Qxd5 {[%clk 01:28:14]} {[%emt 00:00:14]} 16. Rxd5 {[%clk 01:17:16]}
{[%emt 00:00:24]} Bb7 {[%clk 01:28:39]} {[%emt 00:00:05]} 17. Rd7 {[%clk
01:16:41]} {[%emt 00:01:05]} Bxf3 {[%clk 01:28:25]} {[%emt 00:00:44]} 18. Rg1
{[%clk 01:16:55]} {[%emt 00:00:16]} Rad8 {[%clk 01:25:53]} {[%emt 00:03:03]} 19.
Rxd8 {[%clk 01:14:53]} {[%emt 00:02:32]} Rxd8 {[%clk 01:25:43]} {[%emt
00:00:39]} 20. Bc4 {[%clk 01:14:42]} {[%emt 00:00:42]} Bxg4 {[%clk 01:24:17]}
{[%emt 00:01:57]} 21. a3 {[%clk 01:09:48]} {[%emt 00:05:23]} Bf5 {[%clk
01:22:14]} {[%emt 00:02:32]} 22. Rg2 {[%clk 00:56:01]} {[%emt 00:14:17]} Rc8
{[%clk 01:17:38]} {[%emt 00:05:07]} 23. Bd5 {[%clk 00:53:17]} {[%emt 00:03:09]}
Bf8 {[%clk 01:13:39]} {[%emt 00:04:33]} 24. Bxa7 {[%clk 00:49:12]} {[%emt
00:04:35]} Rd8 {[%clk 01:13:40]} {[%emt 00:00:29]} 25. Rd2 {[%clk 00:48:16]}
{[%emt 00:01:25]} Kg7 {[%clk 01:13:18]} {[%emt 00:00:54]} 26. Be3 {[%clk
00:44:41]} {[%emt 00:04:05]} Bc8 {[%clk 01:05:34]} {[%emt 00:08:12]} 27. a4
{[%clk 00:43:06]} {[%emt 00:02:07]} f5 {[%clk 01:05:28]} {[%emt 00:00:36]} 28.
c3 {[%clk 00:40:50]} {[%emt 00:02:46]} f4 {[%clk 01:05:07]} {[%emt 00:00:51]}
29. Bf2 {[%clk 00:40:41]} {[%emt 00:00:38]} e4 {[%clk 01:03:36]} {[%emt
00:02:00]} 30. Bd4+ {[%clk 00:40:14]} {[%emt 00:00:59]} Kh6 {[%clk 01:03:59]}
{[%emt 00:00:07]} 31. Bxe4 {[%clk 00:40:29]} {[%emt 00:00:15]} Re8 {[%clk
01:02:55]} {[%emt 00:01:33]} 32. Bf3 {[%clk 00:35:36]} {[%emt 00:05:23]} g5
{[%clk 00:59:46]} {[%emt 00:03:39]} 33. Rg2 {[%clk 00:30:00]} {[%emt 00:06:03]}
Re1+ {[%clk 00:58:37]} {[%emt 00:01:42]} 34. Ka2 {[%clk 00:29:37]} {[%emt
00:00:54]} Rf1 {[%clk 00:55:50]} {[%emt 00:03:16]} 35. Be2 {[%clk 00:27:00]}
{[%emt 00:03:07]} Be6+ {[%clk 00:56:07]} {[%emt 00:00:13]} 36. b3 {[%clk
00:26:25]} {[%emt 00:01:06]} Rc1 {[%clk 00:55:59]} {[%emt 00:00:37]} 37. Kb2
{[%emt 00:01:26]} Re1 {[%clk 00:55:39]} {[%emt 00:00:01]} 38. Bf6 {[%clk
00:26:02]} {[%emt 00:00:46]} g4 {[%clk 00:55:14]} {[%emt 00:00:55]} 39. Bxg4
{[%clk 00:23:20]} {[%emt 00:03:12]} Bxg4 {[%emt 00:00:17]} 40. Rxg4 {[%clk
00:23:15]} {[%emt 00:00:30]} f3 {[%clk 00:55:43]} {[%emt 00:00:20]} 41. Rf4
{[%clk 00:23:02]} {[%emt 00:00:43]} Re2+ {[%clk 00:55:38]} {[%emt 00:00:35]} 42.
Kc1 {[%clk 00:20:47]} {[%emt 00:02:44]} f2 {[%clk 00:55:55]} {[%emt 00:00:14]}
43. Bg5+ {[%clk 00:19:30]} {[%emt 00:01:44]} Kxg5 {[%clk 00:55:39]} {[%emt
00:00:48]} 44. Rxf8 {[%clk 00:19:54]} {[%emt 00:00:06]} Re1+ {[%clk 00:56:01]}
{[%emt 00:00:08]} 45. Kd2 {[%clk 00:19:57]} {[%emt 00:00:27]} f1=Q {[%emt
00:00:12]} 46. Rxf1 {[%emt 00:00:05]} Rxf1 {[%clk 00:56:05]} {[%emt 00:00:08]}
47. b4 {[%clk 00:20:14]} {[%emt 00:00:14]} Kf6 {[%clk 00:56:05]} {[%emt
00:00:29]} 48. a5 {[%clk 00:20:21]} {[%emt 00:00:23]} Ke6 {[%clk 00:56:21]}
{[%emt 00:00:13]} 49. Kd3 {[%clk 00:20:12]} {[%emt 00:00:40]} Kd6 {[%clk
00:56:43]} {[%emt 00:00:07]} 50. Kc4 {[%clk 00:20:36]} {[%emt 00:00:06]} Kc7
{[%clk 00:56:47]} {[%emt 00:00:27]} 51. Kb5 {[%clk 00:20:52]} {[%emt 00:00:13]}
Kb7 {[%emt 00:00:39]} 52. c4 {[%clk 00:21:11]} {[%emt 00:00:03]} Rf6 {[%clk
00:57:06]} {[%emt 00:00:11]} 53. c5 {[%clk 00:21:17]} {[%emt 00:00:24]} Rc6
{[%clk 00:57:29]} {[%emt 00:00:07]} 54. Kc4 {[%clk 00:21:33]} {[%emt 00:00:12]}
Ra6 {[%clk 00:57:45]} {[%emt 00:00:14]} 55. Kb5 {[%clk 00:21:53]} {[%emt
00:00:11]} Rh6 {[%clk 00:57:34]} {[%emt 00:00:39]} 56. h3 {[%clk 00:21:54]}
{[%emt 00:00:30]} Rg6 {[%clk 00:57:44]} {[%emt 00:00:19]} 57. h4 {[%clk
00:21:56]} {[%emt 00:00:29]} Rf6 {[%clk 00:58:02]} {[%emt 00:00:12]} 58. Ka4
{[%clk 00:21:59]} {[%emt 00:00:27]} Rf4 {[%clk 00:58:08]} {[%emt 00:00:24]} 59.
Kb5 {[%clk 00:22:10]} {[%emt 00:00:19]} Rxh4 {[%clk 00:56:28]} {[%emt
00:02:10]} 60. c6+ {[%clk 00:21:16]} {[%emt 00:01:24]} Kc7 {[%clk 00:56:30]}
{[%emt 00:00:28]} 61. Ka6 {[%clk 00:20:54]} {[%emt 00:00:53]} Rxb4 {[%clk
00:56:42]} {[%emt 00:00:18]} 62. Ka7 {[%emt 00:00:14]} Kxc6 {[%clk 00:56:58]}
{[%emt 00:00:01]} 63. a6 {[%clk 00:21:48]} {[%emt 00:00:05]} Ra4 {[%clk
00:57:23]} {[%emt 00:00:05]} 0-1

[Event "NJSK 2021 Jeugd C"]
[Site "Almelo, Netherlands"]
[Date "2021.08.03"]
[Round "3.10"]
[White "Sazonov, Fedor"]
[Black "Kien, Lancelot"]
[Result "0-1"]
[TimeControl "90min + 30sec/move"]
[WhiteElo "1650"]
[BlackElo "1650"]

1. d4 {[%clk 01:30:59]} d5 {[%clk 01:30:56]} {[%emt 00:00:04]} 2. c4 {[%clk
01:31:24]} {[%emt 00:00:05]} dxc4 {[%clk 01:31:23]} {[%emt 00:00:04]} 3. e3
{[%clk 01:31:49]} {[%emt 00:00:05]} e6 {[%clk 01:31:46]} {[%emt 00:00:07]} 4.
Bxc4 {[%clk 01:32:03]} {[%emt 00:00:16]} Nf6 {[%clk 01:32:10]} {[%emt
00:00:06]} 5. Nf3 {[%clk 01:31:50]} {[%emt 00:00:43]} c5 {[%clk 01:32:30]}
{[%emt 00:00:10]} 6. O-O {[%clk 01:31:19]} {[%emt 00:00:59]} a6 {[%clk
01:32:27]} {[%emt 00:00:35]} 7. Qe2 {[%clk 01:29:15]} {[%emt 00:02:34]} b6
{[%clk 01:26:28]} {[%emt 00:06:28]} 8. dxc5 {[%clk 01:27:05]} {[%emt 00:02:40]}
Bxc5 {[%clk 01:26:36]} {[%emt 00:00:22]} 9. e4 {[%clk 01:26:33]} {[%emt
00:01:02]} h6 {[%clk 01:14:54]} {[%emt 00:12:12]} 10. Rd1 {[%clk 01:22:41]}
{[%emt 00:04:22]} Qc7 {[%clk 01:12:09]} {[%emt 00:03:16]} 11. a3 {[%clk
01:18:03]} {[%emt 00:05:08]} b5 {[%clk 01:06:01]} {[%emt 00:06:38]} 12. Bd3
{[%clk 01:14:37]} {[%emt 00:03:55]} Bb7 {[%clk 01:04:45]} {[%emt 00:01:45]} 13.
b4 {[%clk 01:13:47]} {[%emt 00:01:21]} Bb6 {[%clk 01:00:11]} {[%emt 00:05:05]}
14. h3 {[%clk 01:12:15]} {[%emt 00:02:02]} O-O {[%clk 00:57:41]} {[%emt
00:03:00]} 15. Bb2 {[%clk 01:09:13]} {[%emt 00:03:32]} Qe7 {[%clk 00:57:28]}
{[%emt 00:00:42]} 16. Nbd2 {[%clk 00:57:19]} {[%emt 00:12:23]} Rd8 {[%clk
00:56:41]} {[%emt 00:01:19]} 17. Nf1 {[%clk 00:55:54]} {[%emt 00:01:55]} Nbd7
{[%clk 00:51:00]} {[%emt 00:06:11]} 18. Ng3 {[%clk 00:52:45]} {[%emt 00:03:38]}
Nf8 {[%clk 00:51:06]} {[%emt 00:00:25]} 19. Rac1 {[%clk 00:43:38]} {[%emt
00:09:37]} Ng6 {[%clk 00:50:24]} {[%emt 00:01:11]} 20. Ba1 {[%clk 00:41:46]}
{[%emt 00:02:21]} Nf4 {[%clk 00:45:46]} {[%emt 00:05:08]} 21. Qf1 {[%clk
00:34:37]} {[%emt 00:07:37]} Nxd3 {[%clk 00:43:53]} {[%emt 00:02:26]} 22. Bxf6
{[%clk 00:33:28]} {[%emt 00:01:39]} Qxf6 {[%clk 00:39:08]} {[%emt 00:05:15]} 23.
Rxd3 {[%clk 00:32:38]} {[%emt 00:01:20]} Bxf2+ {[%clk 00:16:51]} {[%emt
00:22:47]} 24. Kxf2 {[%clk 00:21:06]} {[%emt 00:12:02]} Qb2+ {[%clk 00:17:10]}
{[%emt 00:00:11]} 25. Ke3 {[%clk 00:19:14]} {[%emt 00:02:22]} Rxd3+ {[%clk
00:17:20]} {[%emt 00:00:20]} 26. Kxd3 {[%clk 00:19:41]} {[%emt 00:00:04]} Rd8+
{[%clk 00:17:14]} {[%emt 00:00:36]} 27. Ke3 {[%clk 00:19:53]} {[%emt 00:00:17]}
Qxa3+ {[%clk 00:17:09]} {[%emt 00:00:36]} 28. Kf2 {[%clk 00:20:09]} {[%emt
00:00:14]} Qxb4 {[%clk 00:17:02]} {[%emt 00:00:37]} 29. Qe2 {[%clk 00:18:34]}
{[%emt 00:02:04]} Qa5 {[%clk 00:15:48]} {[%emt 00:01:45]} 30. Kg1 {[%clk
00:18:25]} {[%emt 00:00:38]} Qb6+ {[%clk 00:15:51]} {[%emt 00:00:27]} 31. Kh1
{[%clk 00:17:47]} {[%emt 00:01:08]} b4 {[%clk 00:14:20]} {[%emt 00:02:01]} 32.
Qb2 {[%clk 00:15:56]} {[%emt 00:02:21]} a5 {[%clk 00:13:52]} {[%emt 00:00:58]}
33. Ne5 {[%clk 00:14:02]} {[%emt 00:02:22]} Qe3 {[%clk 00:11:43]} {[%emt
00:02:38]} 34. Nxf7 {[%clk 00:09:13]} {[%emt 00:05:23]} Rf8 {[%clk 00:08:25]}
{[%emt 00:03:47]} 35. Nd6 {[%clk 00:07:36]} {[%emt 00:02:08]} Qxg3 {[%emt
00:01:05]} 36. Rc7 {[%clk 00:01:51]} {[%emt 00:06:12]} Rf1# {[%clk 00:08:00]}
{[%emt 00:00:21]} 0-1

[Event "NJSK 2021 Jeugd C"]
[Site "Almelo, Netherlands"]
[Date "2021.08.03"]
[Round "3.11"]
[White "Lopes, Samuel"]
[Black "Blom, Rens"]
[Result "1-0"]
[TimeControl "90min + 30sec/move"]
[WhiteElo "1124"]
[BlackElo "1650"]

1. e4 {[%clk 01:30:57]} {[%emt 00:00:03]} d6 {[%clk 01:30:57]} {[%emt
00:00:04]} 2. d4 {[%clk 01:31:20]} {[%emt 00:00:07]} Nf6 {[%clk 01:31:22]}
{[%emt 00:00:05]} 3. Nc3 {[%clk 01:31:37]} {[%emt 00:00:13]} g6 {[%clk
01:31:45]} {[%emt 00:00:06]} 4. Bg5 {[%clk 01:31:56]} {[%emt 00:00:11]} Bg7
{[%clk 01:32:01]} {[%emt 00:00:14]} 5. e5 {[%clk 01:32:01]} {[%emt 00:00:26]}
dxe5 6. dxe5 {[%clk 01:32:18]} Qxd1+ {[%clk 01:30:49]} {[%emt 00:00:08]} 7.
Rxd1 {[%clk 01:32:34]} {[%emt 00:00:14]} Ng4 {[%clk 01:30:01]} {[%emt
00:01:18]} 8. h3 {[%clk 01:32:21]} {[%emt 00:00:43]} h6 {[%clk 01:22:27]}
{[%emt 00:08:04]} 9. hxg4 {[%clk 01:28:59]} {[%emt 00:03:51]} hxg5 {[%clk
01:22:47]} {[%emt 00:00:11]} 10. Nd5 {[%clk 01:29:03]} {[%emt 00:00:26]} Bd7
{[%clk 01:18:35]} {[%emt 00:04:41]} 11. Rxh8+ {[%clk 01:29:02]} {[%emt
00:00:31]} Bxh8 {[%clk 01:19:01]} {[%emt 00:00:05]} 12. Nxc7+ {[%clk 01:29:24]}
{[%emt 00:00:08]} Kd8 {[%clk 01:19:18]} {[%emt 00:00:13]} 13. Nxa8 {[%clk
01:29:44]} {[%emt 00:00:10]} Bxe5 {[%clk 01:18:34]} {[%emt 00:01:14]} 14. Bb5
{[%clk 01:29:29]} {[%emt 00:00:45]} Bd6 {[%clk 01:17:53]} {[%emt 00:01:10]} 15.
Bxd7 {[%clk 01:29:37]} {[%emt 00:00:22]} Nxd7 {[%clk 01:17:41]} {[%emt
00:00:43]} 16. Nf3 {[%clk 01:29:13]} {[%emt 00:00:53]} f6 {[%clk 01:14:39]}
{[%emt 00:03:33]} 17. Nd4 {[%clk 01:27:35]} {[%emt 00:02:08]} Kc8 {[%clk
01:12:44]} {[%emt 00:02:25]} 18. Nb5 {[%clk 01:26:40]} {[%emt 00:01:25]} Bc5
{[%clk 01:11:35]} {[%emt 00:01:38]} 19. c3 {[%clk 01:25:38]} {[%emt 00:01:32]}
a6 {[%clk 01:05:04]} {[%emt 00:07:02]} 20. b4 {[%clk 01:25:28]} {[%emt
00:00:40]} Bxf2+ {[%clk 01:04:14]} {[%emt 00:01:20]} 21. Kxf2 {[%clk 01:25:40]}
{[%emt 00:00:18]} axb5 {[%clk 01:04:38]} {[%emt 00:00:06]} 22. Rd5 {[%clk
01:24:01]} {[%emt 00:02:09]} b6 {[%clk 01:00:22]} {[%emt 00:04:46]} 23. Rxb5
{[%clk 01:23:21]} {[%emt 00:01:10]} Kb7 {[%clk 01:00:17]} {[%emt 00:00:35]} 24.
Nxb6 {[%clk 01:20:34]} {[%emt 00:03:17]} Nxb6 {[%clk 01:00:29]} {[%emt
00:00:17]} 25. a4 {[%clk 01:19:47]} {[%emt 00:01:17]} Kc6 {[%clk 00:58:59]}
{[%emt 00:01:59]} 26. Rxb6+ {[%clk 01:16:58]} {[%emt 00:03:20]} Kxb6 {[%clk
00:59:18]} {[%emt 00:00:12]} 27. a5+ {[%clk 01:17:21]} {[%emt 00:00:06]} Ka6
{[%clk 00:56:41]} {[%emt 00:03:07]} 28. Ke3 {[%clk 01:16:54]} {[%emt 00:00:57]}
e5 {[%clk 00:55:41]} {[%emt 00:01:30]} 29. Ke4 {[%clk 01:17:02]} {[%emt
00:00:21]} Kb5 {[%clk 00:55:38]} {[%emt 00:00:34]} 30. Kd5 {[%clk 01:17:19]}
{[%emt 00:00:12]} Ka6 {[%clk 00:55:37]} {[%emt 00:00:31]} 31. c4 {[%clk
01:17:42]} {[%emt 00:00:08]} Kb7 {[%clk 00:55:41]} {[%emt 00:00:27]} 32. c5
{[%clk 01:17:45]} {[%emt 00:00:26]} f5 {[%clk 00:54:02]} {[%emt 00:02:09]} 33.
Kxe5 {[%clk 01:18:06]} {[%emt 00:00:09]} f4 {[%clk 00:53:52]} {[%emt 00:00:39]}
34. Kf6 {[%clk 01:18:08]} {[%emt 00:00:28]} Kc6 {[%clk 00:52:30]} {[%emt
00:01:53]} 35. Kxg5 {[%clk 01:17:59]} {[%emt 00:00:39]} 1-0